bitfinex-derivatives/quotes_SOLF0:USTF0_20250207
["timestamp","ask_amount","ask_price","bid_price","bid_amount"]
[1738949215980,0.0336412,195.23,195.22,5.1201]
[1738949217178,36.86449016,195.37,195.28,5.1185]
[1738949217376,2.3863,195.39,195.21,36.86449016]
[1738949217680,2.3863,195.39,195.25,36.86449016]
[1738949217873,2.3863,195.39,195.3,5.1179]
[1738949218076,2.3863,195.39,195.21,36.86449016]
[1738949218484,0.03596974,195.32,195.28,0.03365564]
[1738949218877,36.86449016,195.31,195.28,0.03365564]
[1738949219073,5.1193,195.26,195.19,4.2539]
[1738949219380,36.86449016,195.31,195.19,4.2539]
[1738949219878,5.119,195.27,195.2,5.1204]
[1738949220177,0.03849592,195.27,195.23,0.03501427]
[1738949220382,5.1191,195.26,195.23,0.03501427]
[1738949220577,0.03849592,195.27,195.23,0.03501427]
[1738949220987,5.1193,195.26,195.23,0.03501427]
[1738949221281,0.03849592,195.27,195.23,0.03501427]
[1738949221583,0.03849592,195.27,195.24,5.1195]
[1738949221881,0.03849592,195.27,195.23,0.03501427]
[1738949222478,1.8875,195.36,195.25,36.86449016]
[1738949222675,5.1165,195.36,195.31,5.1176]
[1738949222874,1.7635,195.38,195.26,1.7998]
[1738949223175,6.8796,195.38,195.32,5.1172]
[1738949223380,1.7635,195.38,195.26,1.7998]
[1738949223778,0.03787279,195.34,195.3,0.03833294]
[1738949224184,5.1177,195.31,195.3,0.03833294]
[1738949224384,0.03787279,195.34,195.3,0.03833294]
[1738949224980,5.1177,195.31,195.3,0.03833294]
[1738949225183,36.86449016,195.31,195.17,1.7998]
[1738949225379,36.86449016,195.28,195.17,1.7998]
[1738949225581,5.1194,195.25,195.17,1.7998]
[1738949226185,5.1198,195.24,195.17,6.921]
[1738949226380,36.86449016,195.28,195.19,0.03271128]
[1738949226381,0.03261896,195.23,195.19,0.03271128]
[1738949226787,5.15251896,195.23,195.19,0.03271128]
[1738949226990,0.03261896,195.23,195.19,0.03271128]
[1738949227379,0.03261896,195.23,195.2,5.1204]
[1738949227580,0.03261896,195.23,195.19,36.89720144]
[1738949227782,0.03261896,195.23,195.19,0.03271128]
[1738949227985,0.03261896,195.23,195.19,5.15341128]
[1738949228285,0.03261896,195.23,195.19,0.03271128]
[1738949228689,0.03261896,195.23,195.2,5.1206]
[1738949228885,0.03261896,195.23,195.19,0.03271128]
[1738949229088,5.15271896,195.23,195.19,0.03271128]
[1738949229790,0.03261896,195.23,195.19,0.03271128]
[1738949230391,0.03261896,195.23,195.22,5.1201]
[1738949231883,0.03261896,195.23,195.19,0.03271128]
[1738949232290,5.1204,195.21,195.19,0.03271128]
[1738949232488,0.03261896,195.23,195.19,0.03271128]
[1738949232895,0.03261896,195.23,195.22,5.1201]
[1738949233292,1.896e-05,195.23,195.22,5.1201]
[1738949233592,36.86449016,195.42,195.21,36.86449016]
[1738949233792,3.4953,195.41,195.27,36.86449016]
[1738949234001,5.1164,195.37,195.28,2.4396]
[1738949234191,3.4953,195.41,195.3,36.86449016]
[1738949234594,0.03560843,195.37,195.34,5.15255757]
[1738949234991,0.03560843,195.37,195.35,5.1166]
[1738949235192,0.03560843,195.37,195.34,0.03575757]
[1738949236400,0.03560843,195.37,195.21,38.64459016]
[1738949236900,2.6337,195.37,195.21,38.64459016]
[1738949237297,5.1176,195.32,195.21,38.64459016]
[1738949237602,0.03257999,195.28,195.25,0.03583498]
[1738949237798,7.999e-05,195.28,195.27,5.1188]
[1738949238005,7.999e-05,195.28,195.25,0.03583498]
[1738949238006,3.5186,195.38,195.25,36.90032514]
[1738949238196,3.5186,195.38,195.25,0.03583498]
[1738949238401,5.1167,195.36,195.29,5.118]
[1738949238702,3.5186,195.38,195.21,38.64459016]
[1738949238904,36.86449016,195.42,195.25,36.86449016]
[1738949239100,0.03920588,195.31,195.28,0.0374538]
[1738949239299,5.1154,195.4,195.33,5.1172]
[1738949239496,5.1154,195.4,195.28,36.86449016]
[1738949240004,36.86449016,195.42,195.21,38.64459016]
[1738949240209,36.86449016,195.42,195.21,135.99738095]
[1738949240395,0.03225995,195.33,195.3,0.03666424]
[1738949240903,0.03722077,195.33,195.3,0.03810903]
[1738949242296,0.03722077,195.33,195.32,5.1175]
[1738949242706,0.03722077,195.33,195.3,0.03810903]
[1738949242910,5.15442077,195.33,195.3,0.03810903]
[1738949243102,0.03722077,195.33,195.3,0.03810903]
[1738949245098,5.1177,195.31,195.3,0.03810903]
[1738949245501,0.03722077,195.33,195.3,0.03810903]
[1738949245700,5.1175,195.32,195.3,0.03810903]
[1738949245904,0.03722077,195.33,195.3,0.03810903]
[1738949246404,36.86449016,195.48,195.31,36.86449016]
[1738949246604,4.4272,195.49,195.34,36.86449016]
[1738949246800,0.9133507,195.48,195.35,1.7272]
[1738949247009,5.114,195.46,195.39,5.1154]
[1738949247204,4.4272,195.49,195.39,5.1154]
[1738949247412,4.4272,195.49,195.35,1.7272]
[1738949247612,0.03717059,195.46,195.42,0.03510184]
[1738949248913,5.1146,195.43,195.42,0.03510184]
[1738949250318,36.86449016,195.45,195.32,1.7852]
[1738949251013,36.86449016,195.48,195.32,1.7852]
[1738949251413,36.86449016,195.48,195.36,5.1164]
[1738949251614,0.03538032,195.42,195.38,0.03866445]
[1738949251815,5.1156,195.39,195.38,0.03866445]
[1738949252014,0.03538032,195.42,195.38,0.03866445]
[1738949253209,5.1156,195.39,195.38,0.03866445]
[1738949253415,36.86449016,195.4,195.22,36.86449016]
[1738949253618,36.86449016,195.34,195.23,6.1221]
[1738949253813,36.86449016,195.34,195.19,28.31928343]
[1738949254011,36.86449016,195.31,195.19,33.43988343]
[1738949254212,36.86449016,195.28,195.19,28.31928343]
[1738949254512,0.03435781,195.25,195.22,0.03798179]
[1738949255018,0.03435781,195.25,195.22,5.15798179]
[1738949255215,0.03435781,195.25,195.22,0.03798179]
[1738949255613,0.03435781,195.25,195.24,5.1196]
[1738949256713,5.1172,195.33,195.22,0.03798179]
[1738949256914,5.1172,195.33,195.27,5.1188]
[1738949257213,5.1175,195.32,195.21,41.07309016]
[1738949257412,5.1175,195.32,195.25,5.1191]
[1738949257608,1.8013,195.34,195.21,41.07309016]
[1738949257915,0.03324337,195.29,195.26,0.037114]
[1738949258115,5.1188,195.28,195.26,0.037114]
[1738949258317,0.03324337,195.29,195.26,0.037114]
[1738949259114,0.03324337,195.29,195.28,5.1185]
[1738949259315,0.03324337,195.29,195.26,0.037114]
[1738949259720,0.03324337,195.29,195.28,5.1185]
[1738949260522,4.313,195.39,195.3,5.1179]
[1738949260824,4.313,195.39,195.23,134.21728095]
[1738949261123,41.44449016,195.44,195.27,36.86449016]
[1738949261318,4.313,195.43,195.27,36.86449016]
[1738949261514,5.1157,195.39,195.34,5.1169]
[1738949261818,101.44,195.51,195.33,0.03752893]
[1738949261819,0.03907093,195.37,195.33,0.03752893]
[1738949262013,0.03907093,195.37,195.35,5.1167]
[1738949262217,5.1154,195.4,195.34,36.86449016]
[1738949262419,0.0351719,195.38,195.34,36.89872158]
[1738949262818,0.0351719,195.38,195.36,5.1164]
[1738949263015,0.0351719,195.38,195.34,0.03423142]
[1738949263322,0.0351719,195.38,195.34,5.15093142]
[1738949263522,0.0351719,195.38,195.34,0.03423142]
[1738949264125,5.1162,195.37,195.34,0.03423142]
[1738949264325,0.0351719,195.38,195.34,0.03423142]
[1738949264526,0.0351719,195.38,195.35,5.1166]
[1738949264822,0.0351719,195.38,195.34,0.03423142]
[1738949265013,5.1162,195.37,195.34,0.03423142]
[1738949265215,0.0351719,195.38,195.34,0.03423142]
[1738949266027,5.1511719,195.38,195.34,0.03423142]
[1738949266222,0.0351719,195.38,195.34,0.03423142]
[1738949266826,5.1511719,195.38,195.34,0.03423142]
[1738949267017,0.0351719,195.38,195.34,0.03423142]
[1738949267220,0.0351719,195.38,195.36,5.1164]
[1738949267423,0.0351719,195.38,195.34,0.03423142]
[1738949267623,5.1167,195.35,195.34,0.03423142]
[1738949268430,41.44449016,195.36,195.22,28.31928343]
[1738949268728,36.86449016,195.33,195.22,28.31928343]
[1738949268921,5.1189,195.27,195.22,28.31928343]
[1738949269122,36.86449016,195.33,195.22,28.31928343]
[1738949269524,5.1196,195.24,195.22,28.31928343]
[1738949269921,36.86449016,195.33,195.26,0.03551447]
[1738949270121,0.03507542,195.25,195.22,28.31928343]
[1738949270318,36.86449016,195.29,195.22,28.31928343]
[1738949270527,0.0351015,195.25,195.22,0.03564371]
[1738949271826,5.1198,195.24,195.22,0.03564371]
[1738949273326,0.0351015,195.25,195.22,0.03564371]
[1738949274425,5.1545015,195.25,195.22,0.03564371]
[1738949274628,0.0351015,195.25,195.22,0.03564371]
[1738949275525,4.58,195.37,195.24,36.86449016]
[1738949275733,4.58,195.37,195.27,36.86449016]
[1738949276227,4.58,195.37,195.33,5.1171]
[1738949276426,4.58,195.37,195.27,36.86449016]
[1738949276632,4.61811744,195.37,195.33,0.03898414]
[1738949276831,5.1169,195.35,195.33,0.03898414]
[1738949277035,4.61811744,195.37,195.33,0.03898414]
[1738949277525,5.117,195.34,195.33,0.03898414]
[1738949278032,5.1196,195.24,195.19,5.1208]
[1738949278233,36.86449016,195.3,195.17,7.05657661]
[1738949278535,5.1185,195.29,195.23,5.1196]
[1738949279122,0.03438634,195.28,195.24,0.03740481]
[1738949280534,0.03438634,195.28,195.25,36.86449016]
[1738949280730,0.03438634,195.28,195.27,5.1188]
[1738949281729,1.8375,195.4,195.24,0.03740481]
[1738949281934,4.58,195.41,195.27,36.86449016]
[1738949282225,4.58,195.41,195.23,6.0884]
[1738949282226,4.58,195.41,195.3,36.86449016]
[1738949282432,4.58,195.41,195.34,5.1168]
[1738949282935,0.03361477,195.39,195.36,0.03280789]
[1738949284030,36.89810493,195.39,195.23,103.44119079]
[1738949284229,5.1175,195.33,195.24,5.1196]
[1738949284428,36.86449016,195.36,195.23,6.0884]
[1738949284632,36.86449016,195.4,195.23,6.0884]
[1738949284825,36.86449016,195.4,195.26,5.119]
[1738949285133,36.86449016,195.4,195.23,42.95289016]
[1738949285333,0.03262265,195.35,195.31,0.03508457]
[1738949287037,5.1175,195.32,195.31,0.03508457]
[1738949287732,0.03262265,195.35,195.31,0.03508457]
[1738949288929,0.03262265,195.35,195.2,36.86449016]
[1738949289129,36.86449016,195.3,195.16,1.877]
[1738949289539,2.451,195.29,195.16,1.877]
[1738949290041,5.1196,195.24,195.19,5.1208]
[1738949290239,5.1549474,195.24,195.21,0.0353925]
[1738949290938,0.0353474,195.24,195.22,5.1201]
[1738949291341,0.0353474,195.24,195.21,0.0353925]
[1738949291535,0.0353474,195.24,195.21,5.1556925]
[1738949291736,0.0353474,195.24,195.21,0.0353925]
[1738949293045,2.4665,195.37,195.21,36.89988266]
[1738949293338,2.4665,195.37,195.25,36.86449016]
[1738949293643,5.1165,195.36,195.3,5.1178]
[1738949293851,5.1165,195.36,195.26,2.5117]
[1738949294046,2.4665,195.37,195.26,4.3222]
[1738949294237,0.03289452,195.33,195.29,0.03710804]
[1738949299749,5.15029452,195.33,195.29,0.03710804]
[1738949300248,5.118,195.3,195.29,0.03710804]
[1738949301450,5.1201,195.23,195.17,3.6406]
[1738949301647,36.86449016,195.3,195.17,3.6406]
[1738949302257,36.86449016,195.3,195.18,5.1209]
[1738949302551,0.03884549,195.26,195.22,0.03602]
[1738949302751,5.1195,195.25,195.22,0.03602]
[1738949302948,0.03884549,195.26,195.22,0.03602]
[1738949303856,36.86449016,195.25,195.22,0.03602]
[1738949304361,5.1198,195.23,195.22,0.03602]
[1738949306558,0.03884549,195.26,195.22,0.03602]
[1738949307365,0.03884549,195.26,195.15,2.6086]
[1738949307366,0.03884549,195.26,195.11,3.6491]
[1738949307559,36.86449016,195.23,195.11,3.6491]
[1738949307765,5.1204,195.21,195.11,3.6491]
[1738949307963,39.50779016,195.26,195.11,3.6491]
[1738949308162,2.6433,195.26,195.11,3.6491]
[1738949308665,0.03860717,195.2,195.17,0.0345304]
[1738949308860,1.812,195.27,195.17,0.0345304]
[1738949309064,0.0330229,195.2,195.19,36.86449016]
[1738949309265,4.58,195.34,195.19,36.86449016]
[1738949309561,5.1177,195.32,195.26,5.1189]
[1738949309764,4.3689,195.35,195.22,36.86449016]
[1738949309966,9.4857,195.35,195.29,5.1181]
[1738949310167,1.7256,195.35,195.22,36.86449016]
[1738949310464,0.03387992,195.34,195.3,0.03723205]
[1738949312958,0.03387992,195.34,195.33,5.1172]
[1738949313369,5.1146,195.44,195.37,5.1161]
[1738949313564,4.3339,195.47,195.32,36.86449016]
[1738949314067,5.1141,195.45,195.32,36.86449016]
[1738949314467,0.03849381,195.4,195.37,0.03850052]
[1738949314667,0.03849381,195.4,195.37,5.15440052]
[1738949315165,0.03849381,195.4,195.37,0.03850052]
[1738949315967,5.15389381,195.4,195.37,0.03850052]
[1738949316168,0.03849381,195.4,195.37,0.03850052]
[1738949316468,0.03849381,195.4,195.38,5.1159]
[1738949317267,0.03849381,195.4,195.37,5.15460052]
[1738949317570,0.03849381,195.4,195.37,0.03850052]
[1738949318367,0.03849381,195.4,195.39,5.1156]
[1738949319473,0.03849381,195.4,195.37,5.15440052]
[1738949319673,0.03849381,195.4,195.37,0.03850052]
[1738949320071,0.03849381,195.4,195.39,5.1156]
[1738949320270,0.03849381,195.4,195.37,0.03850052]
[1738949320776,0.03849381,195.4,195.38,5.1156]
[1738949321076,0.03849381,195.4,195.37,0.03850052]
[1738949321376,0.03849381,195.4,195.39,5.1156]
[1738949322966,1.8022,195.49,195.41,5.1151]
[1738949323577,1.8022,195.49,195.38,2.5629]
[1738949324077,5.15312225,195.45,195.42,0.03475545]
[1738949324377,0.03882225,195.45,195.42,0.03475545]
[1738949328279,10.6921,195.59,195.44,22.62305959]
[1738949328478,5.1114,195.56,195.49,5.1129]
[1738949328674,6.1321,195.59,195.49,5.1129]
[1738949328883,5.1117,195.55,195.49,5.1129]
[1738949329077,6.1321,195.59,195.49,5.1129]
[1738949329376,0.0362511,195.56,195.52,0.03607947]
[1738949329977,0.0362511,195.56,195.52,7.947e-05]
[1738949330178,0.0362511,195.56,195.38,122.53875038]
[1738949330379,22.62305959,195.57,195.38,122.53875038]
[1738949330580,22.62305959,195.57,195.41,22.62305959]
[1738949331182,22.62305959,195.57,195.38,122.53875038]
[1738949331481,0.03701262,195.51,195.47,0.03607926]
[1738949332378,5.1133,195.48,195.47,0.03607926]
[1738949334578,5.113,195.5,195.47,0.03607926]
[1738949334778,22.62305959,195.64,195.48,22.62305959]
[1738949334982,10.65478696,195.66,195.52,22.62305959]
[1738949335182,10.65478696,195.66,195.58,5.1104]
[1738949335183,5.1089,195.65,195.58,5.1104]
[1738949336088,5.14332268,195.63,195.6,0.03386605]
[1738949336590,0.03382268,195.63,195.6,0.03386605]
[1738949340385,63.63918034,195.74,195.62,22.62305959]
[1738949340689,68.74588034,195.74,195.67,5.1083]
[1738949340889,63.63918034,195.74,195.65,22.62305959]
[1738949341091,63.63918034,195.74,195.63,3.5916]
[1738949341586,0.03231116,195.7,195.67,0.03319451]
[1738949342089,0.03231116,195.7,195.67,5.14149451]
[1738949342289,0.03231116,195.7,195.67,0.03319451]
[1738949342589,63.63918034,195.74,195.68,22.62305959]
[1738949342891,22.62305959,195.91,195.71,22.62305959]
[1738949343087,28.87745959,195.91,195.75,22.62305959]
[1738949343385,5.1039,195.84,195.77,5.1056]
[1738949343592,28.87745959,195.91,195.75,22.62305959]
[1738949343788,0.91723505,195.9,195.75,22.62305959]
[1738949343990,0.03433283,195.82,195.79,0.03842716]
[1738949344287,22.62305959,195.84,195.71,97.35279079]
[1738949344486,22.62305959,195.84,195.67,22.62305959]
[1738949345489,0.91720741,195.83,195.67,22.62305959]
[1738949345689,0.91720741,195.83,195.74,0.03639247]
[1738949345690,0.03503265,195.77,195.74,0.03639247]
[1738949345889,0.03503265,195.77,195.64,22.62305959]
[1738949346085,0.03503265,195.77,195.63,97.35279079]
[1738949346291,22.62305959,195.78,195.61,22.62305959]
[1738949346786,4.56,195.79,195.64,22.62305959]
[1738949346988,4.56,195.79,195.67,22.62305959]
[1738949347187,0.03714211,195.73,195.7,0.03280366]
[1738949349697,5.107,195.72,195.7,0.03280366]
[1738949350092,5.1073,195.71,195.7,0.03280366]
[1738949350499,5.1073,195.71,195.61,25.15245959]
[1738949350500,0.03714211,195.73,195.61,2.5294]
[1738949350698,22.62305959,195.75,195.61,2.5294]
[1738949350699,5.108,195.69,195.62,5.1096]
[1738949351200,5.1073,195.71,195.64,5.1089]
[1738949351397,1.7489,195.74,195.61,25.15245959]
[1738949351802,0.03795941,195.69,195.66,0.03890472]
[1738949355006,5.1083,195.67,195.66,0.03890472]
[1738949355297,0.03795941,195.69,195.55,2.5742]
[1738949355503,5.1099,195.62,195.56,5.111]
[1738949355908,22.62305959,195.63,195.49,22.62305959]
[1738949356097,22.62305959,195.63,195.48,30.77128343]
[1738949356293,22.62305959,195.66,195.49,22.62305959]
[1738949356494,0.03707141,195.57,195.55,5.1115]
[1738949356800,1.7826,195.67,195.52,22.62305959]
[1738949357006,0.03404602,195.58,195.54,0.03643985]
[1738949357199,5.1094,195.63,195.58,5.1106]
[1738949357394,0.03229117,195.58,195.54,0.03786521]
[1738949357602,1.7826,195.67,195.55,22.62305959]
[1738949357800,6.8909,195.67,195.6,5.1099]
[1738949358201,6.8909,195.67,195.55,22.62305959]
[1738949358495,6.8909,195.67,195.52,22.62305959]
[1738949358701,0.03820881,195.63,195.59,0.0332961]
[1738949360001,4.3525,195.77,195.6,22.62305959]
[1738949360207,4.3525,195.77,195.64,22.62305959]
[1738949360805,5.1065,195.75,195.69,5.1077]
[1738949361006,4.3525,195.77,195.69,5.1077]
[1738949361213,0.03783731,195.74,195.7,0.03225385]
[1738949361511,5.1068,195.73,195.7,0.03225385]
[1738949363211,0.03783731,195.74,195.7,0.03225385]
[1738949364105,5.1073,195.71,195.7,0.03225385]
[1738949364410,5.107,195.73,195.7,0.03225385]
[1738949364612,0.03783731,195.74,195.7,0.03225385]
[1738949365010,5.1078,195.7,195.63,5.1093]
[1738949365412,26.97555959,195.77,195.61,22.62305959]
[1738949365613,26.97555959,195.77,195.65,5.1088]
[1738949365813,26.97555959,195.77,195.61,22.62305959]
[1738949366114,0.0346413,195.71,195.67,0.03541989]
[1738949366915,5.1076,195.7,195.67,0.03541989]
[1738949367513,5.1089,195.65,195.57,7.05657661]
[1738949367715,1.8514,195.7,195.56,28.31928343]
[1738949368013,1.8514,195.7,195.59,5.1102]
[1738949368310,1.8514,195.7,195.58,22.62305959]
[1738949368814,0.03846691,195.66,195.62,0.0329493]
[1738949369718,0.03846691,195.66,195.65,5.1088]
[1738949370310,0.03846691,195.66,195.62,5.1425493]
[1738949370816,0.03846691,195.66,195.62,0.0329493]
[1738949371016,0.03846691,195.66,195.64,5.109]
[1738949371612,0.03846691,195.66,195.65,5.1088]
[1738949371817,0.03846691,195.66,195.62,0.0329493]
[1738949373415,5.1089,195.65,195.62,0.0329493]
[1738949373612,0.03846691,195.66,195.62,0.0329493]
[1738949374015,0.03846691,195.66,195.63,5.1092]
[1738949374319,0.03846691,195.66,195.62,0.0329493]
[1738949374519,0.03846691,195.66,195.63,5.1093]
[1738949375016,5.14706691,195.66,195.63,5.1093]
[1738949375320,0.03846691,195.66,195.62,0.0329493]
[1738949376114,5.14726691,195.66,195.62,5.1423493]
[1738949376512,0.03846691,195.66,195.62,0.0329493]
[1738949377019,0.03846691,195.66,195.56,97.35279079]
[1738949377215,5.1096,195.63,195.59,5.1104]
[1738949377415,0.03846691,195.66,195.55,28.31928343]
[1738949377612,2.5029,195.67,195.57,22.62305959]
[1738949378218,0.03685504,195.64,195.6,0.03644949]
[1738949378420,5.108,195.69,195.57,22.62305959]
[1738949378614,0.0379547,195.64,195.6,0.03816437]
[1738949378816,2.5029,195.74,195.61,14.10201688]
[1738949379016,0.03653401,195.62,195.61,19.21191688]
[1738949379216,5.1081,195.68,195.61,14.10201688]
[1738949379420,0.03785601,195.63,195.61,14.10201688]
[1738949380222,0.03785601,195.63,195.62,5.1096]
[1738949382020,0.03785601,195.63,195.61,14.10201688]
[1738949382623,0.03785601,195.63,195.6,5.14220514]
[1738949383123,0.03785601,195.63,195.6,0.03230514]
[1738949383324,5.1099,195.61,195.6,0.03230514]
[1738949384120,0.03785601,195.63,195.56,7.05657661]
[1738949384922,0.03785601,195.63,195.58,14.10201688]
[1738949385319,0.03785601,195.63,195.6,5.1099]
[1738949386425,0.03785601,195.63,195.59,0.03596577]
[1738949387016,0.03785601,195.63,195.6,5.1099]
[1738949387224,0.03785601,195.63,195.59,0.03596577]
[1738949387726,0.03785601,195.63,195.62,5.1096]
[1738949391024,0.03785601,195.63,195.61,5.1096]
[1738949391229,0.03785601,195.63,195.59,0.03596577]
[1738949393633,0.03785601,195.63,195.62,5.1096]
[1738949394535,0.03785601,195.63,195.6,5.1101]
[1738949395734,0.03785601,195.63,195.59,0.03596577]
[1738949396230,0.03785601,195.63,195.62,5.1096]
[1738949396830,5.601e-05,195.63,195.62,5.1096]
[1738949400439,5.601e-05,195.63,195.61,5.1097]
[1738949400638,5.601e-05,195.63,195.59,28.3552492]
[1738949400842,5.601e-05,195.63,195.62,5.1096]
[1738949401234,5.601e-05,195.63,195.59,28.3552492]
[1738949401533,5.1097,195.62,195.59,28.3552492]
[1738949401735,5.601e-05,195.63,195.59,28.3552492]
[1738949401940,14.10201688,195.62,195.58,53.80985827]
[1738949402140,14.10201688,195.62,195.55,156.86389561]
[1738949402141,5.1109,195.57,195.55,156.86389561]
[1738949402340,14.10201688,195.59,195.55,56.84284073]
[1738949402840,22.5940388,195.63,195.55,56.84284073]
[1738949403037,4.56,195.65,195.55,56.84284073]
[1738949403235,4.56,195.65,195.55,56.87604029]
[1738949403436,0.03518579,195.62,195.55,56.87604029]
[1738949403734,0.03518579,195.62,195.57,5.1109]
[1738949403930,0.03518579,195.62,195.55,56.87604029]
[1738949404138,0.03518579,195.62,195.56,5.1111]
[1738949404335,0.03518579,195.62,195.55,56.87604029]
[1738949404537,0.03518579,195.62,195.55,0.03319956]
[1738949405339,0.03518579,195.62,195.57,5.1107]
[1738949405539,0.03518579,195.62,195.55,0.03319956]
[1738949405943,0.03518579,195.62,195.57,5.1109]
[1738949406639,0.03518579,195.62,195.55,22.62723836]
[1738949406839,22.5940388,195.73,195.59,22.5940388]
[1738949407039,4.56,195.75,195.59,22.5940388]
[1738949407342,5.1073,195.71,195.63,5.1092]
[1738949407535,5.1073,195.71,195.59,22.5940388]
[1738949407944,80.86191388,195.76,195.63,22.5940388]
[1738949408139,0.03275469,195.67,195.64,1.8045]
[1738949408340,157.36389528,195.77,195.64,1.8045]
[1738949408638,4.56,195.8,195.64,1.8045]
[1738949408835,4.56,195.8,195.65,2.5716]
[1738949409144,5.106,195.76,195.7,5.1073]
[1738949409340,22.5940388,195.81,195.65,2.5716]
[1738949409539,22.5940388,195.81,195.74,5.1063]
[1738949409540,5.1049,195.81,195.74,5.1063]
[1738949409739,0.03537245,195.75,195.71,0.03352348]
[1738949409939,103.45595268,195.82,195.65,2.5716]
[1738949410244,0.03869893,195.75,195.71,0.03885496]
[1738949411039,0.03869893,195.75,195.71,5.14605496]
[1738949411342,0.03869893,195.75,195.71,0.03885496]
[1738949413142,0.03869893,195.75,195.71,5.14605496]
[1738949413347,0.03869893,195.75,195.71,0.03885496]
[1738949414248,5.14509893,195.75,195.71,0.03885496]
[1738949414447,0.03869893,195.75,195.71,0.03885496]
[1738949414749,0.03869893,195.75,195.71,5.14615496]
[1738949415445,5.14489893,195.75,195.71,0.03885496]
[1738949415943,5.107,195.72,195.71,0.03885496]
[1738949416651,5.1066,195.74,195.71,0.03885496]
[1738949416852,0.03869893,195.75,195.71,0.03885496]
[1738949417748,0.03869893,195.75,195.56,26.1547388]
[1738949418050,22.5940388,195.72,195.56,28.5421388]
[1738949418247,5.1079,195.69,195.63,5.1092]
[1738949418742,5.1079,195.69,195.64,5.109]
[1738949418942,0.03377924,195.68,195.56,28.5421388]
[1738949419144,4.54,195.71,195.56,28.5421388]
[1738949419350,0.03925103,195.64,195.6,0.03890065]
[1738949419646,5.1094,195.63,195.6,0.03890065]
[1738949420044,5.14835103,195.64,195.6,0.03890065]
[1738949420251,0.03925103,195.64,195.6,0.03890065]
[1738949421654,0.03925103,195.64,195.62,5.1094]
[1738949421850,0.03925103,195.64,195.6,0.03890065]
[1738949423156,4.54,195.73,195.6,22.63293945]
[1738949423347,27.7230388,195.79,195.6,22.5940388]
[1738949423654,5.106,195.77,195.73,5.1067]
[1738949423855,4.54,195.79,195.67,4.1749]
[1738949424255,5.1073,195.71,195.67,9.2832]
[1738949424555,5.1073,195.71,195.67,9.31932482]
[1738949424745,5.1077,195.7,195.67,2.47232482]
[1738949424951,0.03902785,195.71,195.67,2.47232482]
[1738949425758,0.03902785,195.71,195.67,0.03612482]
[1738949426853,5.1081,195.68,195.67,0.03612482]
[1738949427555,5.1081,195.68,195.67,0.00019077]
[1738949428258,22.63306665,195.71,195.67,0.00019077]
[1738949428259,0.03902785,195.71,195.67,0.00019077]
[1738949429359,5.14642785,195.71,195.67,0.00019077]
[1738949429563,0.03902785,195.71,195.67,0.00019077]
[1738949430061,5.1081,195.68,195.67,0.00019077]
[1738949430567,0.03902785,195.71,195.56,1.7443]
[1738949430762,5.1092,195.64,195.56,1.7443]
[1738949430958,22.5940388,195.69,195.58,5.1104]
[1738949431161,22.5940388,195.69,195.56,1.7443]
[1738949431363,22.5940388,195.66,195.56,1.7443]
[1738949431656,22.5940388,195.66,195.59,0.03783128]
[1738949431657,22.62799058,195.63,195.59,0.03783128]
[1738949431865,22.5940388,195.6,195.5,1.7176]
[1738949432258,5.1117,195.55,195.5,1.7176]
[1738949432458,22.5940388,195.6,195.47,2.6278]
[1738949432661,22.5940388,195.57,195.46,1.8389]
[1738949433155,0.03660032,195.53,195.5,0.03436836]
[1738949433360,5.1125,195.51,195.5,0.03436836]
[1738949433858,22.5940388,195.51,195.37,21.22981121]
[1738949435064,5.1144,195.44,195.42,0.03665259]
[1738949435258,22.5940388,195.45,195.37,21.22981121]
[1738949435664,22.5940388,195.48,195.31,22.5940388]
[1738949435865,22.5940388,195.52,195.35,22.5940388]
[1738949436162,55.55582428,195.57,195.42,22.5940388]
[1738949436364,5.112,195.53,195.46,5.1137]
[1738949436666,0.03475495,195.51,195.43,4.3199]
[1738949436860,0.03475495,195.51,195.44,1.7895]
[1738949437465,4.54,195.57,195.46,22.5940388]
[1738949438164,4.54,195.64,195.5,22.5940388]
[1738949438365,101.2,195.7,195.54,22.5940388]
[1738949438565,4.54,195.69,195.55,2.4346]
[1738949438767,0.03537827,195.59,195.55,2.46883258]
[1738949439060,4.54,195.69,195.55,4.1794]
[1738949439262,22.5940388,195.6,195.4,22.5940388]
[1738949439456,5.1112,195.56,195.55,4.427e-05]
[1738949439662,22.5940388,195.6,195.42,2.4346]
[1738949440165,22.5940388,195.68,195.42,2.4346]
[1738949440367,0.92096815,195.67,195.42,2.4346]
[1738949440668,0.03676323,195.57,195.42,2.4346]